bitfinex/quotes_SOLUSD_20220210
["timestamp","ask_amount","ask_price","bid_price","bid_amount"]
[1644500651587,10.67,108.21,108.07,47.1049264]
[1644500651783,24.33949229,108.21,108.07,53.3549264]
[1644500651983,13.8736,108.19,108.07,77.6485264]
[1644500652184,2.23122154,108.2,108.07,77.8985264]
[1644500652383,2.23122154,108.2,108.09,44.46013784]
[1644500652583,13.66949229,108.21,108.09,44.46013784]
[1644500652984,15.90071383,108.21,108.09,44.46013784]
[1644500653185,29.77141383,108.21,108.09,44.46013784]
[1644500653387,26.77192154,108.21,108.09,44.46013784]
[1644500653588,13.66949229,108.2,108.09,44.46013784]
[1644500654286,13.8736,108.19,108.09,44.46013784]
[1644500654688,16.10482154,108.19,108.09,44.46013784]
[1644500654887,16.10482154,108.19,108.08,4.623]
[1644500654888,16.35482154,108.19,108.05,1.297705]
[1644500655087,4.624,108.18,108.05,1.297705]
[1644500655290,13.8822,108.15,108.02,24.352105]
[1644500655487,14.19971,108.15,108.02,24.352105]
[1644500655689,14.1322,108.15,108.02,24.352105]
[1644500655989,0.25,108.15,108.03,37.16342797]
[1644500656191,2.23122154,108.18,108.06,41.62748756]
[1644500656389,10.67,108.21,108.06,41.62748756]
[1644500656591,2.23122154,108.21,108.08,47.76424963]
[1644500656798,11.80119,108.2,108.08,47.76424963]
[1644500657492,2.23122154,108.19,108.08,47.76424963]
[1644500657692,13.8723,108.2,108.08,61.63554963]
[1644500658193,2.23122154,108.19,108.08,61.63554963]
[1644500658394,23.4069,108.23,108.09,17.25735323]
[1644500658595,4.622,108.28,108.1,38.03204215]
[1644500658794,10.67,108.29,108.11,15.291]
[1644500658994,2.23122154,108.27,108.12,46.53892965]
[1644500659300,13.8641,108.26,108.14,48.15648385]
[1644500659494,16.461516,108.25,108.14,48.15648385]
[1644500659794,14.549422,108.24,108.14,48.15648385]
[1644500660197,20.72032154,108.23,108.1,16.67]
[1644500660398,16.09932154,108.23,108.1,10.67]
[1644500660597,6.85322154,108.22,108.1,10.67]
[1644500660796,53.34632154,108.22,108.09,13.8711]
[1644500660998,48.47432154,108.22,108.09,13.8711]
[1644500661199,15.292,108.24,108.1,36.25078353]
[1644500661397,4.622,108.25,108.1,50.12068353]
[1644500661598,10.67,108.27,108.1,60.79068353]
[1644500661800,4.621,108.29,108.12,44.91936415]
[1644500661997,58.066271,108.28,108.14,35.193468]
[1644500662197,2.23122154,108.26,108.14,35.193468]
[1644500662398,11.847071,108.25,108.14,35.193468]
[1644500662599,107.747388,108.24,108.1,10.67]
[1644500662799,35.57105854,108.26,108.1,10.67]
[1644500663004,2.23122154,108.23,108.06,11.967705]
[1644500663200,2.23122154,108.23,108.05,2.53527228]
[1644500663201,15.743,108.22,108.05,1.297705]
[1644500663406,0.31436846,108.21,108.04,4.621]
[1644500663600,15.744,108.2,108.06,41.46853176]
[1644500663801,0.30834836,108.17,108.06,41.46853176]
[1644500664001,13.8815,108.16,108.06,41.46853176]
[1644500664401,82.0777,108.25,108.08,44.08649535]
[1644500664601,82.0777,108.25,108.1,34.40346861]
[1644500664602,11.805541,108.24,108.1,34.40346861]
[1644500665402,14.03676254,108.24,108.1,34.65346861]
[1644500665604,11.804479,108.23,108.12,40.35293096]
[1644500665803,11.804479,108.23,108.12,40.60293096]
[1644500666003,11.804479,108.22,108.12,40.60293096]
[1644500666202,44.844813,108.27,108.12,40.60293096]
[1644500666404,44.844813,108.27,108.12,44.97393096]
[1644500666603,16.09512154,108.26,108.12,44.97393096]
[1644500666802,11.85037,108.25,108.13,10.67]
[1644500667006,11.85037,108.25,108.14,39.06364346]
[1644500667402,46.2235,108.27,108.14,39.06364346]
[1644500667403,44.846996,108.26,108.14,39.06364346]
[1644500667605,44.846996,108.26,108.14,52.92844346]
[1644500667606,0.31574175,108.22,108.14,52.92844346]
[1644500667803,11.806662,108.21,108.14,39.06364346]
[1644500668405,11.806662,108.2,108.14,39.06364346]
[1644500668602,13.8676,108.23,108.14,39.06364346]
[1644500668802,11.806662,108.22,108.14,39.06364346]
[1644500669002,2.23122154,108.27,108.14,39.06364346]
[1644500669203,11.96246248,108.29,108.14,39.31364346]
[1644500669404,46.5818,108.32,108.16,37.13714882]
[1644500669606,4.619,108.31,108.18,40.97849292]
[1644500669812,24.1549,108.35,108.19,98.39]
[1644500670005,11.96538265,108.36,108.2,39.75708133]
[1644500670203,1.18410909,108.41,108.22,47.55351264]
[1644500670204,19.5043034,108.4,108.22,47.55351264]
[1644500670403,19.5043034,108.4,108.23,10.67]
[1644500670404,14.01718454,108.39,108.23,10.67]
[1644500670606,4.616,108.38,108.24,40.90413996]
[1644500670809,13.8521,108.35,108.24,40.90413996]
[1644500671007,18.44904,108.35,108.24,40.90413996]
[1644500671208,18.44904,108.35,108.24,41.15413996]
[1644500671406,14.8873034,108.38,108.26,45.17278981]
[1644500671607,4.617,108.39,108.26,45.17278981]
[1644500671806,15.285,108.42,108.26,45.42278981]
[1644500672005,11.802323,108.41,108.27,87.72]
[1644500672205,11.802323,108.41,108.26,59.27258981]
[1644500672405,11.802323,108.41,108.28,47.09441468]
[1644500672706,11.802323,108.42,108.28,47.09441468]
[1644500672905,11.802323,108.41,108.28,51.70841468]
[1644500673105,11.802323,108.42,108.28,51.95841468]
[1644500673308,22.8863,108.43,108.28,51.95841468]
[1644500673505,13.81191451,108.42,108.28,51.70841468]
[1644500673709,13.8456,108.4,108.28,47.09441468]
[1644500673907,24.5156,108.4,108.28,47.09441468]
[1644500674108,19.0156,108.4,108.28,47.09441468]
[1644500674610,8.3456,108.4,108.28,47.09441468]
[1644500674807,13.8434,108.42,108.3,40.0415994]
[1644500675007,11.846051,108.41,108.3,40.0415994]
[1644500675207,13.8434,108.42,108.3,40.0415994]
[1644500675607,11.846051,108.41,108.3,40.0415994]
[1644500675809,13.8434,108.42,108.3,40.0415994]
[1644500676913,38.86897143,108.44,108.3,48.15077771]
[1644500677110,13.841,108.44,108.3,63.43377771]
[1644500677309,13.841,108.44,108.3,59.07077771]
[1644500677711,14.091,108.44,108.3,59.07077771]
[1644500677914,0.25,108.44,108.31,87.72]
[1644500678113,18.42491451,108.48,108.32,10.67]
[1644500678324,10.67,108.53,108.36,13.8351]
[1644500678513,13.04077154,108.52,108.36,13.8351]
[1644500678712,13.04077154,108.52,108.36,14.0851]
[1644500679115,13.8316,108.52,108.38,87.72]
[1644500679314,66.66111451,108.55,108.39,67.76504618]
[1644500679517,15.640011,108.54,108.39,67.76504618]
[1644500679715,15.640011,108.54,108.39,72.62404618]
[1644500679913,15.679354,108.54,108.39,72.62404618]
[1644500680116,15.679354,108.54,108.39,68.01504618]
[1644500680117,28.72012554,108.54,108.39,68.01504618]
[1644500680315,39.24550761,108.53,108.39,68.01504618]
[1644500680515,11.792541,108.52,108.39,68.01504618]
[1644500680716,18.4384,108.54,108.39,68.01504618]
[1644500680918,13.80934,108.54,108.39,69.98474866]
[1644500681141,4.609,108.56,108.42,13.8253]
[1644500681340,1.18410909,108.61,108.43,15.278]
[1644500681544,11.800164,108.6,108.43,17.24770248]
[1644500681747,11.800164,108.59,108.44,45.36995511]
[1644500681941,11.800164,108.58,108.46,34.8630145]
[1644500682140,23.60375856,108.62,108.48,43.63669555]
[1644500682141,11.800164,108.57,108.48,43.63669555]
[1644500682349,11.800164,108.61,108.48,43.88669555]
[1644500682540,11.800164,108.61,108.49,4.606]
[1644500682741,11.800164,108.6,108.48,57.45509555]
[1644500682941,4.606,108.63,108.48,43.63669555]
[1644500682942,11.800164,108.59,108.48,43.63669555]
[1644500683141,11.800164,108.61,108.48,43.88669555]
[1644500683443,30.69243487,108.65,108.5,40.71601402]
[1644500683639,30.69243487,108.65,108.5,51.38601402]
[1644500683640,2.08583596,108.63,108.5,51.38601402]
[1644500683842,11.841686,108.62,108.5,51.38601402]
[1644500684140,14.07290754,108.62,108.5,51.38601402]
[1644500684340,2.23122154,108.62,108.5,40.71601402]
[1644500684540,13.8179,108.64,108.5,42.68100738]
[1644500684740,24.972,108.66,108.51,10.67]
[1644500685140,24.972,108.66,108.54,13.8105]
[1644500685340,24.972,108.66,108.56,45.29096608]
[1644500686143,27.20322154,108.66,108.53,10.67]
[1644500686340,4.604,108.65,108.5,10.67]
[1644500686540,0.31923054,108.64,108.48,10.67]
[1644500686743,4.605,108.63,108.48,10.67]
[1644500686941,6.83622154,108.63,108.48,10.67]
[1644500687142,42.08273949,108.62,108.49,44.55466794]
[1644500687340,4.605,108.61,108.49,44.55466794]
[1644500687544,0.30963072,108.6,108.46,10.67]
[1644500687743,4.607,108.59,108.44,24.5171]
[1644500688141,17.75822154,108.59,108.44,24.5171]
[1644500688340,15.27199308,108.58,108.44,24.5171]
[1644500688542,13.8294,108.56,108.41,233.9312]
[1644500688743,15.278,108.55,108.37,15.278]
[1644500688943,0.32007233,108.53,108.37,10.67]
[1644500689144,4.61,108.52,108.37,10.67]
[1644500689344,4.61,108.55,108.37,15.28]
[1644500689543,29.04196795,108.55,108.38,51.70235674]
[1644500689745,29.04196795,108.55,108.38,160.70135674]
[1644500689943,29.04196795,108.55,108.38,72.98135674]
[1644500690144,10.67,108.54,108.38,62.37235674]
[1644500690344,10.67,108.54,108.38,51.70235674]
[1644500690345,3.73630288,108.53,108.38,51.70235674]
[1644500690544,3.73630288,108.53,108.39,4.61]
[1644500690842,3.98630288,108.53,108.4,37.26668214]
[1644500691246,29.04196795,108.51,108.4,37.26668214]
[1644500691647,29.29196795,108.51,108.4,37.26668214]
[1644500692244,31.52318949,108.51,108.4,37.26668214]
[1644500692452,3.73630288,108.49,108.4,37.26668214]
[1644500692650,17.57330288,108.49,108.35,13.8345]
[1644500692850,17.57330288,108.49,108.33,4.611]
[1644500692851,20.50452442,108.49,108.33,4.611]
[1644500693050,0.30511762,108.45,108.29,87.72]
[1644500693252,4.613,108.44,108.3,324.484]
[1644500693452,10.67,108.47,108.3,200.4064]
[1644500693753,0.25,108.47,108.31,48.65513409]
[1644500693951,58.6098,108.49,108.33,13.8376]
[1644500694153,47.9398,108.49,108.34,10.67]
[1644500694456,2.23122154,108.53,108.34,34.929875]
[1644500694651,4.611,108.58,108.35,89.68097755]
[1644500694852,28.62910069,108.57,108.36,50.38058397]
[1644500695051,28.62910069,108.57,108.43,13.8237]
[1644500695251,28.62910069,108.57,108.45,36.59120228]
[1644500695651,30.86032223,108.57,108.41,10.67]
[1644500695852,4.608,108.56,108.39,87.8931]
[1644500696051,10.67,108.55,108.39,87.8931]
[1644500696354,13.8329,108.52,108.38,76.3554]
[1644500696551,13.8329,108.52,108.37,147.1758]
[1644500696552,4.14917014,108.51,108.39,47.19186274]
[1644500696753,21.66039168,108.51,108.39,47.19186274]
[1644500696951,34.11065715,108.51,108.39,47.19186274]
[1644500697451,17.05039168,108.51,108.37,24.1042]
[1644500697753,13.8369,108.5,108.37,24.1042]
[1644500698153,14.0869,108.5,108.37,24.1042]
[1644500698354,28.62910069,108.49,108.38,40.24814878]
[1644500698554,10.67,108.51,108.38,40.24814878]
[1644500698756,18.4433,108.54,108.4,13.83]
[1644500698954,13.8333,108.54,108.4,13.83]
[1644500699153,13.46499397,108.54,108.4,107.8]
[1644500699454,23.54308154,108.56,108.41,34.53066888]
[1644500699858,39.60360308,108.56,108.41,48.35856888]
[1644500700055,37.37238154,108.56,108.41,48.35856888]
[1644500700259,23.54308154,108.56,108.43,47.16219195]
[1644500700457,25.77430308,108.56,108.43,47.16219195]
[1644500700654,53.81764285,108.56,108.43,47.16219195]
[1644500700856,53.81764285,108.56,108.37,23.5483]
[1644500700857,4.608,108.55,108.39,13.8315]
[1644500701057,15.278,108.55,108.37,121.9383]
[1644500701257,2.23122154,108.54,108.37,121.9383]
[1644500701462,10.67,108.53,108.37,34.2183]
[1644500701856,11.46641083,108.52,108.38,41.68508436]
[1644500702055,19.90518929,108.52,108.38,41.68508436]
[1644500702256,10.67,108.52,108.38,55.76788436]
[1644500702457,10.67,108.55,108.39,10.67]
[1644500702656,15.279,108.58,108.41,87.72]
[1644500702856,10.67,108.58,108.42,15.278]
[1644500703058,10.67,108.61,108.43,87.72]
[1644500703258,43.11278519,108.6,108.45,13.8233]
[1644500703459,13.8229,108.6,108.46,47.79675182]
[1644500703659,8.888,108.62,108.46,58.46675182]
[1644500703859,8.888,108.62,108.47,4.606]
[1644500704162,8.888,108.62,108.48,10.67]
[1644500704360,8.888,108.62,108.49,87.72]
[1644500704562,8.888,108.62,108.51,35.9864815]
[1644500704860,8.888,108.62,108.52,87.72]
[1644500705262,8.888,108.62,108.52,101.5344]
[1644500705460,8.888,108.62,108.51,35.9864815]
[1644500705859,13.88437222,108.62,108.51,35.9864815]
[1644500706060,8.888,108.62,108.51,35.9864815]
[1644500706267,8.888,108.62,108.52,98.39]
[1644500706460,8.888,108.62,108.52,10.67]
[1644500706663,8.888,108.62,108.52,16.92]
[1644500706861,8.888,108.62,108.52,10.92]
[1644500707061,8.888,108.62,108.53,37.30773932]
[1644500707397,1.18410909,108.69,108.54,121.0]
[1644500707561,14.99520909,108.69,108.55,15.273]
[1644500707761,1.20810909,108.71,108.55,21.523]
[1644500707965,0.024,108.72,108.55,21.523]
[1644500708363,50.50651009,108.72,108.56,36.41018464]
[1644500708563,50.50651009,108.72,108.57,10.67]
[1644500708762,50.50651009,108.72,108.58,44.77336587]
[1644500708763,56.29261918,108.72,108.58,44.77336587]
[1644500708964,15.85648769,108.72,108.58,44.77336587]
[1644500709166,0.024,108.72,108.58,58.83116587]
[1644500709364,8.0648696,108.65,108.59,10.67]
[1644500709763,8.0648696,108.65,108.59,10.92]
[1644500709964,8.0648696,108.65,108.6,36.70188258]
[1644500710364,0.024,108.71,108.61,82.0]
[1644500710567,0.024,108.73,108.6,41.55288258]
[1644500710767,18.4302,108.74,108.6,36.70188258]
[1644500710967,2.23122154,108.72,108.6,36.70188258]
[1644500711170,47.80967911,108.71,108.6,36.70188258]
[1644500711369,68.24171802,108.71,108.56,10.67]
[1644500711670,68.24171802,108.71,108.53,123.987]
[1644500711671,0.31481045,108.67,108.53,10.67]
[1644500711867,0.31481045,108.67,108.51,22.7742]
[1644500711868,4.104,108.66,108.51,33.4442]
[1644500712072,6.33522154,108.66,108.51,22.7742]
[1644500712269,12.90122154,108.65,108.47,10.67]
[1644500712470,15.27268286,108.65,108.52,36.26889874]
[1644500712771,43.96680067,108.63,108.52,36.26889874]
[1644500712969,10.92,108.65,108.52,36.26889874]
[1644500713175,0.25,108.64,108.52,36.26889874]
[1644500713368,10.92,108.65,108.52,36.26889874]
[1644500713569,15.524,108.65,108.52,36.26889874]
[1644500713770,18.4199,108.65,108.52,50.08389874]
[1644500713970,46.57037216,108.65,108.52,50.08389874]
[1644500714173,2.23122154,108.67,108.52,138.05389874]
[1644500714372,69.9982,108.69,108.53,12.61161271]
[1644500714672,23.95,108.69,108.54,87.72]
[1644500714976,23.95,108.69,108.54,10.92]
[1644500714977,2.23122154,108.68,108.54,10.92]
[1644500715170,2.23122154,108.68,108.55,43.75502594]
[1644500715171,54.79608649,108.68,108.55,43.75502594]
[1644500715374,65.46608649,108.68,108.55,43.75502594]
[1644500715571,1.76927548,108.66,108.55,43.75502594]
[1644500716174,23.95,108.69,108.55,43.75502594]
[1644500716370,13.813,108.67,108.55,43.75502594]
[1644500717172,39.17264382,108.66,108.53,10.67]
[1644500717373,0.31527858,108.62,108.48,10.67]
[1644500717576,4.606,108.61,108.48,24.4906]
[1644500717775,0.31527858,108.62,108.48,24.4906]
[1644500717973,0.25,108.61,108.48,24.4906]
[1644500718273,0.25,108.61,108.5,43.38042867]
[1644500718674,10.55849661,108.63,108.5,43.38042867]
[1644500718971,15.16349661,108.63,108.5,43.38042867]
[1644500719171,0.30092609,108.62,108.5,43.38042867]
[1644500719375,14.12132609,108.62,108.5,43.38042867]
[1644500719572,39.17264382,108.61,108.5,43.38042867]
[1644500719775,43.77764382,108.61,108.5,43.38042867]
[1644500720174,44.02764382,108.61,108.5,43.38042867]
[1644500720377,13.8229,108.59,108.45,13.8245]
[1644500720576,13.8229,108.59,108.42,148.95056788]
[1644500720577,4.93094397,108.58,108.42,134.5641]
[1644500720774,46.0982,108.57,108.42,122.6283]
[1644500720975,4.608,108.56,108.42,34.9083]
[1644500721376,10.55849661,108.55,108.43,46.07649757]
[1644500721778,13.8295,108.54,108.43,46.07649757]
[1644500722179,0.25,108.55,108.43,48.01804503]
[1644500722408,49.3118,108.6,108.44,15.278]
[1644500722577,1.18410909,108.63,108.45,87.72]
[1644500722778,33.5989,108.64,108.45,87.72]
[1644500722779,22.9289,108.64,108.46,15.276]
[1644500722981,72.2979,108.67,108.48,13.8202]
[1644500723177,1.18410909,108.7,108.49,15.275]
[1644500723378,0.024,108.71,108.5,87.72]
[1644500723579,1.20810909,108.71,108.51,4.603]
[1644500723777,43.642092,108.71,108.51,58.49031739]
[1644500723979,45.87331354,108.71,108.53,87.72]
[1644500724178,7.29715752,108.69,108.55,13.8099]
[1644500724381,4.603,108.68,108.54,55.49205787]
[1644500724583,0.32093047,108.64,108.54,44.82205787]
[1644500724979,15.274,108.66,108.54,44.82205787]
[1644500724980,7.29715752,108.65,108.54,44.82205787]
[1644500725180,42.43398291,108.62,108.49,192.9455]
[1644500725479,56.50278291,108.62,108.49,128.7105]
[1644500725680,14.0688,108.62,108.49,128.9605]
[1644500725883,0.25,108.62,108.5,10.67]
[1644500726283,2.48122154,108.62,108.46,24.5005]
[1644500726481,4.606,108.61,108.48,13.8212]
[1644500726680,38.37048507,108.6,108.49,46.6329769]
[1644500726882,2.78340872,108.6,108.49,46.6329769]
[1644500727084,2.23122154,108.59,108.49,46.6329769]
[1644500727281,2.48122154,108.59,108.49,46.6329769]
[1644500727480,0.25,108.59,108.49,46.6329769]
[1644500727681,2.23122154,108.58,108.49,46.6329769]
[1644500727881,2.48122154,108.58,108.49,46.6329769]
[1644500728082,0.25,108.58,108.49,46.1329769]
[1644500728481,2.23122154,108.57,108.49,46.1329769]
[1644500728688,13.826,108.56,108.44,24.4964]
[1644500728883,13.826,108.56,108.42,34.4882]
[1644500729083,6.83922154,108.55,108.42,10.67]
[1644500729284,7.08922154,108.55,108.42,10.67]
[1644500729688,14.0767,108.55,108.44,13.8262]
[1644500729911,14.0767,108.55,108.45,44.27277939]
[1644500730087,13.8267,108.55,108.45,44.27277939]
[1644500731290,14.0767,108.55,108.45,44.27277939]
[1644500731590,44.55908433,108.54,108.45,44.27277939]
[1644500731792,13.8294,108.53,108.42,13.8291]
[1644500731991,0.31974344,108.52,108.39,4.609]
[1644500732194,15.28,108.51,108.34,99.395405]
[1644500732392,17.51122154,108.51,108.34,98.0977]
[1644500732593,15.28,108.51,108.35,10.67]
[1644500732792,5.6720561,108.5,108.36,48.3216246]
[1644500732990,5.6720561,108.5,108.37,4.611]
[1644500733192,13.837,108.49,108.38,45.89720134]
[1644500733791,12.90122154,108.53,108.39,87.72]
[1644500733991,10.67,108.53,108.39,92.329]
[1644500734292,24.4991,108.53,108.4,13.8306]
[1644500734491,42.85676575,108.52,108.41,46.3515795]
[1644500735192,10.67,108.53,108.41,46.3515795]
[1644500735394,47.4846,108.55,108.42,101.5489]
[1644500735894,47.4846,108.55,108.42,101.7989]
[1644500736094,47.4846,108.55,108.42,112.4689]
[1644500736294,12.30687798,108.54,108.43,47.16454345]
[1644500736595,26.13487798,108.54,108.43,47.16454345]
[1644500736794,28.36609952,108.54,108.43,47.16454345]
[1644500736994,32.97409952,108.54,108.43,47.16454345]
[1644500737415,33.22409952,108.54,108.43,47.16454345]
[1644500737813,26.38487798,108.54,108.43,47.16454345]
[1644500738014,14.078,108.54,108.43,47.16454345]
[1644500738218,0.25,108.54,108.44,10.67]
[1644500738414,13.8252,108.56,108.44,10.67]
[1644500738615,13.8252,108.56,108.45,87.72]
[1644500738816,13.8252,108.56,108.45,87.97]
[1644500739014,43.10738817,108.57,108.46,38.02631604]
[1644500739620,13.8228,108.58,108.46,38.02631604]
[1644500739826,19.10779582,108.62,108.47,15.277]
[1644500739827,1.18410909,108.62,108.47,15.277]
[1644500740016,1.18410909,108.62,108.47,31.03161472]
[1644500740219,46.8013,108.63,108.47,31.03161472]
[1644500740418,2.23122154,108.61,108.47,29.0995]
[1644500740618,6.79248717,108.6,108.48,44.17424284]
[1644500740817,55.85075381,108.63,108.49,87.72]
[1644500741017,46.8013,108.63,108.49,87.72]
[1644500741218,46.8013,108.63,108.49,87.97]
[1644500741819,46.8013,108.63,108.5,39.72616318]
[1644500742017,1.18410909,108.65,108.52,13.8156]
[1644500742218,0.024,108.66,108.53,87.72]
[1644500742420,5.81210909,108.67,108.53,87.72]
[1644500742617,1.20810909,108.67,108.53,87.97]
[1644500742818,47.88366622,108.66,108.54,47.37264812]
[1644500743218,47.88366622,108.66,108.54,47.62264812]
[1644500743431,47.88366622,108.66,108.5,46.051]
[1644500743432,2.23122154,108.65,108.5,46.051]
[1644500743723,1.18410909,108.64,108.46,59.8129]
[1644500743920,0.31103096,108.62,108.46,59.8129]
[1644500744123,23.13478444,108.63,108.46,64.4189]
[1644500744319,2.34747421,108.62,108.47,40.98339128]
[1644500744520,16.16497421,108.62,108.49,48.3290693]
[1644500744721,18.64619575,108.62,108.49,48.3290693]
[1644500744921,16.41497421,108.62,108.49,136.0490693]
[1644500745520,13.8175,108.62,108.49,136.0490693]
[1644500745721,4.605,108.63,108.49,137.97723387]
[1644500745920,13.8149,108.64,108.49,148.89723387]
[1644500746120,13.8149,108.64,108.49,146.9690693]
[1644500746326,13.8149,108.64,108.49,152.9690693]
[1644500746519,40.14861335,108.63,108.49,152.9690693]
[1644500746920,40.14861335,108.63,108.49,148.89723387]
[1644500747120,0.024,108.65,108.5,4.605]
[1644500747321,0.024,108.65,108.54,13.8137]
[1644500747524,10.67,108.67,108.54,13.8137]
[1644500747720,4.603,108.66,108.54,13.8137]
[1644500747921,11.87810909,108.67,108.54,13.8137]
[1644500748220,34.27370478,108.66,108.55,47.35070317]
[1644500748421,34.27370478,108.66,108.51,138.3694]
[1644500748422,13.8134,108.65,108.52,13.8159]
[1644500748623,4.604,108.64,108.5,22.8891]
[1644500748821,17.83110948,108.64,108.46,4.604]
[1644500749023,14.66999594,108.63,108.43,4.606]
[1644500749222,10.67,108.62,108.44,87.72]
[1644500749422,15.95743565,108.61,108.46,87.72]
[1644500749621,13.8203,108.6,108.5,13.8187]
[1644500749823,34.27370478,108.59,108.51,34.61213887]
[1644500750224,34.52370478,108.59,108.51,34.61213887]
[1644500750823,14.0705,108.59,108.51,34.61213887]
[1644500751024,11.87810909,108.64,108.51,122.33213887]
[1644500751224,10.67,108.64,108.51,122.58213887]
[1644500751425,10.67,108.64,108.51,34.86213887]
[1644500751724,10.67,108.64,108.51,122.58213887]
[1644500751925,35.04388196,108.63,108.51,122.58213887]
[1644500752529,10.694,108.64,108.51,122.58213887]
[1644500752726,13.8158,108.63,108.51,136.39963887]
[1644500752927,13.8158,108.63,108.52,4.605]
[1644500753124,14.0658,108.63,108.52,4.605]
[1644500753327,0.024,108.64,108.53,87.72]
[1644500753529,37.44623988,108.72,108.58,0.30717559]
[1644500753726,0.46167261,108.82,108.56,40.60415235]
[1644500753727,3.979,108.77,108.59,10.67]
[1644500753928,13.8019,108.75,108.6,29.0742]
[1644500754128,82.09177261,108.82,108.6,29.0742]
[1644500754330,10.67,108.8,108.6,30.7242]
[1644500754529,3.854,108.79,108.6,29.3232]
[1644500754729,58.98070811,108.78,108.61,34.29569852]
[1644500754929,20.69330143,108.76,108.61,44.96569852]
[1644500755132,47.64161997,108.74,108.61,59.01899852]
[1644500755730,47.64161997,108.74,108.61,58.76899852]
[1644500756129,21.36238957,108.72,108.61,58.76899852]
[1644500756528,21.36238957,108.72,108.61,24.4733]
[1644500756729,21.61238957,108.72,108.59,13.8065]
[1644500757632,21.61238957,108.72,108.6,36.64593472]
[1644500757832,35.41998957,108.72,108.6,36.64593472]
[1644500758630,35.16998957,108.72,108.6,36.64593472]
[1644500760632,13.804,108.74,108.6,36.89593472]
[1644500760931,46.0148,108.77,108.61,1.92816457]
[1644500761134,10.67,108.79,108.61,98.39]
[1644500761433,4.03,108.78,108.61,104.64]
[1644500761635,13.799,108.78,108.63,13.8009]
[1644500761831,0.46167261,108.82,108.64,51.28056475]
[1644500762032,4.033,108.81,108.64,53.20872932]
[1644500762232,0.46167261,108.82,108.66,87.72]
[1644500762440,0.46167261,108.82,108.67,10.67]
[1644500762833,60.5417349,108.82,108.68,46.31457044]
[1644500763032,33.38814725,108.8,108.68,46.31457044]
[1644500763234,33.38814725,108.8,108.68,46.56457044]
[1644500763833,47.18424725,108.8,108.68,60.35927044]
[1644500764236,47.43424725,108.8,108.68,46.31457044]
[1644500764436,47.43424725,108.8,108.65,10.67]
[1644500764635,14.648,108.79,108.62,237.9076]
[1644500764833,10.92,108.79,108.62,237.9076]
[1644500765234,13.8008,108.76,108.62,125.91]
[1644500765438,35.61586229,108.75,108.63,47.62282774]
[1644500765635,46.28586229,108.75,108.63,47.62282774]
[1644500765837,46.53586229,108.75,108.63,47.62282774]
[1644500766038,46.53586229,108.75,108.6,76.505]
[1644500766238,62.56888383,108.75,108.58,13.8074]
[1644500767041,62.56888383,108.75,108.59,45.04870712]
[1644500767642,51.89888383,108.75,108.59,45.04870712]
[1644500767842,51.89888383,108.75,108.59,58.85470712]
[1644500768044,10.67,108.74,108.59,45.04870712]
[1644500768241,13.8084,108.7,108.59,45.04870712]
[1644500768443,35.61586229,108.69,108.59,45.04870712]
[1644500769142,35.61586229,108.69,108.61,34.22435182]
[1644500770043,35.61586229,108.69,108.56,172.5196]
[1644500770247,0.024,108.7,108.56,113.4314]
[1644500770447,0.024,108.71,108.58,1.92354314]
[1644500770645,4.038,108.75,108.59,10.67]
[1644500771266,48.28911362,108.74,108.62,135.33564512]
[1644500771666,48.28911362,108.74,108.62,135.58564512]
[1644500772568,48.28911362,108.74,108.62,137.50935894]
[1644500772767,48.28911362,108.74,108.62,151.31115894]
[1644500773273,48.28911362,108.74,108.62,167.98115894]
[1644500773469,0.024,108.75,108.62,183.95344766]
[1644500773671,0.024,108.75,108.63,13.21325414]
[1644500773870,0.024,108.76,108.66,13.7939]
[1644500774171,0.024,108.8,108.67,102.989]
[1644500774371,0.024,108.81,108.68,35.48849526]
[1644500774571,0.46167261,108.82,108.7,44.41148418]
[1644500774873,0.46167261,108.82,108.74,13.7859]
[1644500775369,0.46167261,108.82,108.7,93.97]